Cogmind - Beta 14 @@@ ROGUE MODE // 2024.09.09 @ 15:53:32 Player: BadFPS Result: Destroyed by B-75 Beast with Magnetic Acceleration Cannon Performance ------------- Evolutions (4) 2000 Regions Visited (8) 1600 Robots Destroyed (170) 850 Value Destroyed (5768) 5768 Prototype IDs (24) 480 Alien Tech Used (0) 0 Bonus (833) 833 TOTAL SCORE: 11531 Bonus ------- High Alert Combat Kills 680 Follower Combat Kills 271 Friendly Fire -118 Cogmind --------- Core Integrity 0/850 Matter 92/300 Energy 99/100 System Corruption 13% Temperature Cool (12) Movement Core (50) Location -6/Lower Caves Parts ------- > --- POWER (2) -------- (None) > --- PROPULSION (3) --- (None) > --- UTILITY (6) ------ (None) > --- WEAPON (4) ------- (None) > --- INVENTORY (5) ---- Medium Storage Unit Improved Energy Well (400) Weapon Cycler Mini Grenade Launcher Makeshift Spear Peak State ------------ > --- POWER ------------ Enhanced Nuclear Core Fusion Reactor > --- PROPULSION ------- Improved Heavy Treads Cooled Antigrav System > --- UTILITY ---------- Improved Heat Sink Medium Storage Unit Improved Energy Well Experimental Targeting Computer Energy Filter Hardened Medium Armor Plating > --- WEAPON ----------- Phase Cannon Precision Assault Rifle Heavy Hardcell Cannon > --- INVENTORY -------- Improved Energy Well Advanced Sensor Array Advanced Signal Interpreter Hardlight Generator Mini Grenade Launcher Mini Grenade Launcher [Rating: 89] Favorites ----------- Power Cooled Ion Engine Engine Cooled Ion Engine Power Core Enhanced Nuclear Core Reactor Fusion Reactor Propulsion Armored Treads Treads Armored Treads Leg Carbon-fiber Leg Hover Unit Gravmag System Utility Medium Storage Unit Device Transmission Jammer Storage Medium Storage Unit Processor Experimental Targeting Computer Hackware Hacking Suite Protection Hardened Medium Armor Plating Weapon Precision Assault Rifle Energy Gun EM Pulse Gun Energy Cannon Advanced Beam Cannon Ballistic Gun Precision Assault Rifle Ballistic Cannon Heavy Hardcell Cannon Launcher Mini Grenade Launcher Special Weapon Molecular Deconstructor Impact Weapon Impact Mace Piercing Weapon Makeshift Spear Build | -11 -10 -9 -9 -8 -7 -6 -6 -6 ------- Run | Yrd Mat Mat Sto Mat Fac Fac Low Low Slots Evolved 8 | . . 2 . 2 2 2 . . Power 1 | . . . . . . 1 . . Propulsion 1 | . . 1 . . . . . . Utility 4 | . . 1 . 1 2 . . . Weapon 2 | . . . . 1 . 1 . . Parts Attached 168 | 6 4 32 30 23 15 34 6 18 Power 20 | 1 . 5 1 3 3 4 . 3 Engine 12 | 1 . 5 1 1 2 . . 2 Core 7 | . . . . 2 1 3 . 1 Reactor 1 | . . . . . . 1 . . Propulsion 27 | 2 2 7 4 5 2 3 . 2 Treads 19 | . 2 4 4 5 2 2 . . Leg 6 | 2 . 3 . . . . . 1 Wheel . | . . . . . . . . . Hover 2 | . . . . . . 1 . 1 Flight . | . . . . . . . . . Utility 46 | 1 1 3 10 4 6 15 3 3 Device 27 | . . 2 5 2 2 12 2 2 Storage 6 | 1 1 . 1 . . 2 . 1 Processor 4 | . . . 1 . 2 . 1 . Hackware 1 | . . . 1 . . . . . Protection 8 | . . 1 2 2 2 1 . . Artifact . | . . . . . . . . . Weapon 75 | 2 1 17 15 11 4 12 3 10 Energy Gun 13 | 2 1 8 . 2 . . . . Energy Cannon 21 | . . 3 8 2 . 8 . . Ballistic Gun 13 | . . 2 2 6 2 1 . . Ballistic Cannon 2 | . . . 1 . . 1 . . Launcher 17 | . . 4 4 1 1 2 2 3 Special Weapon 1 | . . . . . . . 1 . Impact Weapon 1 | . . . . . 1 . . . Slashing Weapon . | . . . . . . . . . Piercing Weapon 7 | . . . . . . . . 7 Special Melee Weapon . | . . . . . . . . . Unidentified Prototypes 19 | . . 4 3 3 3 5 1 . Corrupted Parts 1 | . . . . . . . . 1 System Corruption 1 | . . . . . . . . 1 Parts Lost 27 | . . . . . 1 18 2 6 Power 6 | . . . . . . 4 . 2 Propulsion 6 | . . . . . . 4 . 2 Utility 7 | . . . . . 1 4 . 2 Weapon 8 | . . . . . . 6 2 . Highest Loss Streak 11 | . . . . . 1 11 3 5 To Critical Strikes 1 | . . . . . . 1 . . Average Slot Usage (%) 91 | . 87 92 99 99 99 89 40 81 Engine 7 | . 14 11 11 5 3 3 . 7 Core 2 | . . . . 4 3 5 . 2 Treads 21 | . 21 29 33 26 23 13 . . Device 13 | . . 4 12 11 11 19 12 18 Storage 10 | . 16 19 11 9 7 8 3 4 Processor 7 | . . . 5 9 16 6 12 13 Protection 3 | . . 2 2 6 8 2 . . Energy Gun 2 | . 28 15 . . . . . . Energy Cannon 9 | . . 3 17 4 . 15 . . Ballistic Gun 6 | . . 3 1 20 22 5 . . Ballistic Cannon 1 | . . . 2 2 . 2 . . Piercing Weapon 1 | . . . . . . . . 20 Peak Build Rating 89 | 6 7 22 31 44 53 89 44 66 Average Rating 41 | 5 6 17 25 41 50 67 29 57 On Entrance 23 | . 6 7 21 31 43 52 26 26 Naked Turns 5 | . . . . . . . . 5 Heaviest Build 80 | 14 24 30 30 39 50 80 24 23 Greatest Support 75 | 20 40 60 60 68 68 75 15 27 Greatest Overweight (x) 23 | 1 . 1 . 1 . 23 7 . Average Overweight (x) . | . . . . . . . . . Largest Inventory Capacity 10 | 8 10 10 10 10 10 10 10 5 Average Capacity 9 | 7 8 10 10 10 10 10 5 5 Most Carried 10 | 4 8 10 10 10 10 10 8 5 Average Carried 8 | 2 7 8 9 9 8 8 5 4 Final Capacity 10 | 8 10 10 10 10 10 10 5 5 Final Carried 10 | 4 8 8 10 10 9 8 5 5 Class Distribution -------------------- 45% | Mutant 37% | Gunner 7% | Derelict-Mutant 5% | Skirmisher Dominant Class ---------------- Mutant | -10/Materials Mutant | -9/Materials Mutant | -9/Storage Gunner | -8/Materials Skirmisher | -7/Factory Gunner | -6/Factory Mutant | -6/Lower Caves Derelict-Mutant | -6/Lower Caves Resources | -11 -10 -9 -9 -8 -7 -6 -6 -6 ----------- Run | Yrd Mat Mat Sto Mat Fac Fac Low Low Matter Collected 3796 | 246 44 412 530 669 544 936 102 313 Remotely . | . . . . . . . . . Salvage Created 6593 | . 106 863 1665 760 762 2086 158 193 Parts 368 | . 10 61 92 53 52 87 2 11 Haulers Intercepted 13 | . . 3 5 1 2 2 . . Recyclers Shooed 8 | . . 1 . 3 . 3 1 . Parts Field Recycled . | . . . . . . . . . Retrieved Matter . | . . . . . . . . . Parts Self-Destructed 9 | . . . . . . . 1 8 Prevented 1 | . . . . . . . . 1 Kills | -11 -10 -9 -9 -8 -7 -6 -6 -6 ------- Run | Yrd Mat Mat Sto Mat Fac Fac Low Low Combat Hostiles Destroyed 129 | . 2 24 34 14 12 34 4 5 Melee 2 | . . . . . . . . 2 Guns 39 | . 2 7 2 13 12 3 . . Cannons 53 | . . 4 24 . . 25 . . AOE 32 | . . 13 6 1 . 5 4 3 Classes Destroyed 20 | . 2 6 5 2 1 2 1 1 Worker 7 | . . 1 2 . . 4 . . Builder 1 | . . . . 1 . . . . Tunneler 1 | . . 1 . . . . . . Hauler 13 | . . 3 5 1 2 2 . . Recycler 3 | . . . 1 . . 2 . . Mechanic 2 | . . . 1 . . 1 . . Operator 5 | . . 1 2 1 1 . . . Watcher 9 | . 2 2 2 3 . . . . Swarmer 25 | . . 12 2 4 . . 3 4 Grunt 52 | . 2 8 18 2 7 14 . 1 Brawler 6 | . . . 5 1 . . . . Duelist 3 | . . . 1 . . 2 . . Protector 3 | . . . 2 . . 1 . . Sentry 20 | . . 4 6 6 2 2 . . Specialist 2 | . . . . . . 2 . . Hunter 4 | . . . . 1 . 3 . . Programmer 12 | . . . . . 3 9 . . Heavy 1 | . . . . . . 1 . . Packrat 4 | . . . . . . . 2 2 Tinkerer 1 | . . . . . . . . 1 Thief 1 | . . . . . . . 1 . Best Kill Streak 8 | . 2 7 7 4 6 8 3 4 Combat Bots Only 6 | . 2 6 5 4 6 6 3 4 Max Kills in Single Turn 4 | . 1 4 2 2 1 2 2 2 Gunslinging . | . . . . . . . . . Exploded 4 | . . 4 2 1 . 2 2 2 Melee 1 | . . . . . . . . 1 Uniques/NPCs Destroyed . | . . . . . . . . . Combat | -11 -10 -9 -9 -8 -7 -6 -6 -6 -------- Run | Yrd Mat Mat Sto Mat Fac Fac Low Low Hostile Shots Fired 734 | . 5 86 104 58 109 329 10 33 Missed 235 | . 1 26 31 19 37 108 2 11 Damage Taken 7748 | . 45 759 925 512 834 3819 276 578 Core 1241 | . 12 52 122 63 124 528 113 227 Absorbed by Shields 196 | . . . . . . 196 . . Reduced by Siege Mode 12 | . . . . . . 12 . . Ignored by Resistances 19 | . . . . . . . . 19 Regen/Repaired (Parts) 887 | . . 144 541 202 . . . . Core Remaining (%) 84 | 100 95 . 56 88 82 . . . Volleys Fired 369 | 1 7 60 108 40 32 89 11 21 Largest 4 | 2 2 2 2 3 3 4 2 1 Hottest 265 | 90 90 112 136 184 84 265 115 30 Shots Fired 823 | 2 14 117 204 120 94 236 14 22 Gun 361 | 2 14 97 17 99 93 39 . . Cannon 410 | . . 17 178 20 . 190 5 . Launcher 52 | . . 3 9 1 1 7 9 22 Special . | . . . . . . . . . Kinetic 327 | . . 18 31 106 93 79 . . Thermal 362 | 1 4 54 164 13 . 121 5 . Explosive 52 | . . 3 9 1 1 7 9 22 Electromagnetic 82 | 1 10 42 . . . 29 . . Robot Hit Streak 37 | 2 9 23 16 37 20 21 3 2 Robot Miss Streak 6 | . 1 6 4 2 2 4 2 1 Penetration Max . | . . . . . . . . . Secondary Targets 4 | . . . . 3 1 . . . Max Gunslinging Chain 1 | . . . . 1 1 . . . Shots Hit Robots 537 | 2 10 72 119 83 74 167 5 5 Core Hits 276 | 1 5 44 62 27 30 83 9 15 Critical Kills 6 | . . . 2 2 1 1 . . Critical Parts Destroyed 3 | . . . . 2 . 1 . . Critical Strikes 21 | . 1 5 4 4 1 6 . . Burn 5 | . 1 4 . . . . . . Meltdown 4 | . . . 2 1 . 1 . . Destroy 5 | . . . . 3 1 1 . . Blast 4 | . . . 2 . . 2 . . Corrupt 3 | . . 1 . . . 2 . . Melee Attacks 4 | . . . . . . . . 4 Impact . | . . . . . . . . . Slashing . | . . . . . . . . . Piercing 4 | . . . . . . . . 4 Sneak Attacks 1 | . . . . . . . . 1 Combat Hostiles 1 | . . . . . . . . 1 Follow-up Attacks 1 | . . . . . . . . 1 Damage Inflicted 17142 | 28 156 1873 3719 1671 1519 7086 493 597 Guns 4840 | 28 156 899 137 1472 1510 638 . . Cannons 8292 | . . 308 2287 123 . 5486 88 . Explosions 3876 | . . 662 1285 66 . 953 405 505 Melee 92 | . . . . . . . . 92 Ramming 42 | . . 4 10 10 9 9 . . Kinetic 6208 | . . 192 323 1472 1510 2711 . . Thermal 5910 | 13 37 729 2101 123 . 2819 88 . Explosive 3785 | . . 571 1285 66 . 953 405 505 Electromagnetic 1105 | 15 119 377 . . . 594 . . Impact . | . . . . . . . . . Slashing . | . . . . . . . . . Piercing 92 | . . . . . . . . 92 Highest Corruption 13 | . . . 1 . 3 12 12 13 Average Corruption 6 | . . . 1 . 2 7 12 12 Corruption Purged . | . . . . . . . . . Corruption Blocked . | . . . . . . . . . Effects 122 | . . . 4 . 18 41 13 46 Message Errors 29 | . . . . . 6 12 4 7 Matter Fused 27 | . . . 1 . 3 9 2 12 Heat Flow Errors 21 | . . . . . 1 5 5 10 Energy Discharges 10 | . . . 2 . . 2 . 6 Parts Rejected 1 | . . . . . . 1 . . Data Loss (minor) 17 | . . . . . 5 6 1 5 Data Loss (major) 4 | . . . 1 . . . 1 2 Misfires 5 | . . . . . 1 2 . 2 Alerts 2 | . . . . . 1 1 . . Misdirections 2 | . . . . . . 1 . 1 Weapon Failures 4 | . . . . . 1 2 . 1 Overload Shots . | . . . . . . . . . Overflow Damage 526 | . . 50 14 . . 397 48 17 Projectiles 418 | . . . 12 . . 391 15 . Explosions 108 | . . 50 2 . . 6 33 17 Melee . | . . . . . . . . . Knockbacks 18 | . . . 2 . . 16 . . Impact . | . . . . . . . . . Kinetic 16 | . . . 2 . . 14 . . Secondary 2 | . . . . . . 2 . . Self-Inflicted Damage 422 | . . 5 18 . 119 . 178 102 Shots 12 | . . 1 1 . 2 . 5 3 Rammed 10 | . . 2 3 2 1 2 . . Targets Rammed 10 | . . 2 3 2 1 2 . . Kicked . | . . . . . . . . . Crushed . | . . . . . . . . . Highest Temperature 364 | 30 118 345 195 137 106 364 256 262 Average Temperature 67 | 18 46 46 35 36 27 109 116 90 Received Heat Transfer 1782 | . 24 327 396 216 198 570 . 51 Effects 4 | . . . . . . 4 . . Energy Bleed 2 | . . . . . . 2 . . Interference 2 | . . . . . . 2 . . Siege Activations 2 | . . . . . . 2 . . Total Turns 16 | . . . . . . 16 . . Longest Duration 11 | . . . . . . 11 . . Robots Corrupted 1 | . . . . . . 1 . . Combat Hostiles . | . . . . . . . . . Parts Fried 4 | . . 1 . . . 2 . 1 Impact Corruptions 1 | . . . . . . 1 . . Robots Melted 4 | . . . 2 1 . 1 . . Combat Hostiles 3 | . . . 2 . . 1 . . Parts Melted 15 | . . 1 6 4 . 4 . . Heat Transferred 9416 | 37 185 1865 3793 222 . 3203 111 . Parts Sabotaged . | . . . . . . . . . Parts Stolen . | . . . . . . . . . Parts Stripped . | . . . . . . . . . Power Chain Reactions 2 | . . 2 . . . . . . Alert | -11 -10 -9 -9 -8 -7 -6 -6 -6 ------- Run | Yrd Mat Mat Sto Mat Fac Fac Low Low Peak Influence 1000 | . 64 496 1000 680 355 654 . . Initial 422 | . . 26 161 422 263 173 . . Average 385 | . 42 184 624 524 283 246 . . Maximum Alert Level 3 | . . 2 3 2 1 2 . . Low Security (%) 29 | 100 100 70 8 . 5 49 . . Level 1 24 | . . 9 14 . 94 26 . . Level 2 33 | . . 19 34 100 . 23 . . Level 3 12 | . . . 42 . . . . . Level 4 . | . . . . . . . . . Level 5 . | . . . . . . . . . High Security . | . . . . . . . . . Max Security . | . . . . . . . . . Squads Dispatched 25 | . 1 4 9 . 3 8 . . Investigation 4 | . . 1 3 . . . . . Extermination 5 | . . . . . 2 3 . . Reinforcement 11 | . 1 3 2 . 1 4 . . Assault 3 | . . . 3 . . . . . Garrison 2 | . . . 1 . . 1 . . Intercept . | . . . . . . . . . Searches Triggered . | . . . . . . . . . Construction Impeded 2 | . . 1 . . . 1 . . Haulers Reinforced 2 | . . . . . . 2 . . Active Scanning Responses . | . . . . . . . . . Cargo Convoy Interrupts 1 | . . . . . . 1 . . Stealth | -11 -10 -9 -9 -8 -7 -6 -6 -6 --------- Run | Yrd Mat Mat Sto Mat Fac Fac Low Low Distress Signals 4 | . 1 1 2 . . . . . Communications Jammed 31 | . . . . 14 . 17 . . Distress Signals 30 | . . . . 13 . 17 . . Times Spotted 187 | . 5 41 43 21 14 52 4 7 Peak Tracking Total 10 | . 4 5 6 4 4 10 3 4 Tactical Retreats 10 | . . . 4 . . 5 . 1 Traps | -11 -10 -9 -9 -8 -7 -6 -6 -6 ------- Run | Yrd Mat Mat Sto Mat Fac Fac Low Low Traps Triggered 5 | . . 1 1 1 . 2 . . Indirectly . | . . . . . . . . . Trap Hack Attempts . | . . . . . . . . . Triggered . | . . . . . . . . . Disarmed . | . . . . . . . . . Reprogrammed . | . . . . . . . . . Reused . | . . . . . . . . . Traps Extracted . | . . . . . . . . . Installed . | . . . . . . . . . Triggered 2 | . . . . . . . . 2 Machines | -11 -10 -9 -9 -8 -7 -6 -6 -6 ---------- Run | Yrd Mat Mat Sto Mat Fac Fac Low Low Machines Disabled 13 | . . . 8 2 2 . . 1 Max in Single Turn 2 | . . . 1 1 2 . . 1 Garrison Access 1 | . . . 1 . . . . . Machines Repaired . | . . . . . . . . . Machines Dismantled . | . . . . . . . . . Machines Sabotaged . | . . . . . . . . . Overloaded Fab Kills . | . . . . . . . . . Hacking | -11 -10 -9 -9 -8 -7 -6 -6 -6 --------- Run | Yrd Mat Mat Sto Mat Fac Fac Low Low Machines Accessed 35 | . . 3 16 7 3 5 . 1 Terminals 20 | . . 1 12 4 2 1 . . Fabricators 1 | . . . . . . 1 . . Repair Stations 6 | . . 1 2 2 1 . . . Recycling Units 2 | . . . 1 . . 1 . . Scanalyzers 2 | . . 1 . . . 1 . . Garrison Access 3 | . . . 1 1 . 1 . . Total Hacks 83 | . . 16 30 24 4 8 . 1 Successful 48 | . . 14 18 11 1 3 . 1 Failed 35 | . . 2 12 13 3 5 . . Catastrophic 8 | . . . 4 2 1 1 . . Database Lockouts . | . . . . . . . . . Manual 18 | . . 1 7 6 1 2 1 . Terminals 46 | . . 5 20 15 3 3 . . Fabricators 1 | . . . . . . 1 . . Repair Stations 17 | . . 3 7 6 1 . . . Recycling Units 2 | . . . 1 . . 1 . . Scanalyzers 10 | . . 8 . . . 2 . . Garrison Access 6 | . . . 2 3 . 1 . . Terminal Hacks 18 | . . 3 7 5 1 1 . 1 Record 6 | . . . . 5 . 1 . . Prototype ID Bank 2 | . . 1 . . 1 . . . Open Door 5 | . . . 4 . . . . 1 Branch Access Points 2 | . . 1 1 . . . . . Unreport Threat 1 | . . . 1 . . . . . Locate Traps 1 | . . . 1 . . . . . Zone Layout 1 | . . 1 . . . . . . Fabricator Hacks . | . . . . . . . . . Repair Station Hacks 13 | . . 2 6 5 . . . . Scan Component 7 | . . 1 3 3 . . . . Repair 6 | . . 1 3 2 . . . . Recycling Unit Hacks 2 | . . . 1 . . 1 . . Retrieve Components 2 | . . . 1 . . 1 . . Scanalyzer 9 | . . 8 . . . 1 . . Insert Component 5 | . . 4 . . . 1 . . Analyze 4 | . . 4 . . . . . . Garrison Access Hacks . | . . . . . . . . . Unauthorized Hacks 6 | . . 1 4 1 . . . . Terminals 6 | . . 1 4 1 . . . . Botnet 6 | . . 1 4 1 . . . . Fabricators . | . . . . . . . . . Repair Stations . | . . . . . . . . . Recycling Units . | . . . . . . . . . Scanalyzers . | . . . . . . . . . Garrison Access . | . . . . . . . . . Data Cores Recovered . | . . . . . . . . . Used . | . . . . . . . . . Hacking Detections 27 | . . 3 12 5 3 4 . . Full Trace Events 4 | . . 1 3 . . . . . Feedback Events 1 | . . . 1 . . . . . Corruption 1 | . . . 1 . . . . . Feedback Blocked . | . . . . . . . . . Robot Schematics Acquired . | . . . . . . . . . Robots Built . | . . . . . . . . . Authchips . | . . . . . . . . . Time . | . . . . . . . . . Total Robot Build Rating . | . . . . . . . . . Part Schematics Acquired 4 | . . 4 . . . . . . Parts Built . | . . . . . . . . . Authchips . | . . . . . . . . . Time . | . . . . . . . . . Total Part Build Rating . | . . . . . . . . . Parts Repaired 6 | . . 1 3 2 . . . . Time 215 | . . 38 114 63 . . . . Parts Recycled . | . . . . . . . . . Recycled Matter . | . . . . . . . . . Retrieved Matter . | . . . . . . . . . Retrieved Components 13 | . . . 10 . . 3 . . Parts Scanalyzed 5 | . . 4 . . . 1 . . Part Schematics Acquired 4 | . . 4 . . . . . . Parts Damaged . | . . . . . . . . . Bothacking | -11 -10 -9 -9 -8 -7 -6 -6 -6 ------------ Run | Yrd Mat Mat Sto Mat Fac Fac Low Low Used RIF Installer . | . . . . . . . . . Robots Hacked . | . . . . . . . . . Non-combat . | . . . . . . . . . Combat . | . . . . . . . . . Robot Hacks Applied . | . . . . . . . . . Relay Couplers Released 5 | . . . 1 . . 4 . . Machine Destruction 1 | . . . 1 . . . . . Programmers 4 | . . . . . . 4 . . Fabnet Peak Effective % . | . . . . . . . . . Robots Rewired 1 | . . . 1 . . . . . Allies Hacked . | . . . . . . . . . Hacks Repelled . | . . . . . . . . . Allies | -11 -10 -9 -9 -8 -7 -6 -6 -6 -------- Run | Yrd Mat Mat Sto Mat Fac Fac Low Low Total Allies 10 | . . . 10 . . . . . Largest Group 10 | . . . 10 . . . . . Highest-Rated Group 88 | . . . 88 . . . . . Highest-Rated Ally 16 | . . . 16 . . . . . Total Orders . | . . . . . . . . . Ally Attacks 72 | . . . 72 . . . . . Total Damage 626 | . . . 626 . . . . . Kills 11 | . . . 11 . . . . . Allies Corrupted 1 | . . . 1 . . . . . Allies Melted . | . . . . . . . . . Intel | -11 -10 -9 -9 -8 -7 -6 -6 -6 ------- Run | Yrd Mat Mat Sto Mat Fac Fac Low Low Robot Analysis Total . | . . . . . . . . . Derelict Logs Recovered 3 | . . . . . . . 1 2 Drone Launches . | . . . . . . . . . Drone Recoveries . | . . . . . . . . . Exploration | -11 -10 -9 -9 -8 -7 -6 -6 -6 ------------- Run | Yrd Mat Mat Sto Mat Fac Fac Low Low Turns Passed 10484 | 91 274 1216 2707 1258 1107 2422 417 992 Spaces Moved 4828 | 60 151 367 1141 589 453 773 439 855 Core 595 | 8 . . . . . 8 439 140 Treads 3337 | . 97 292 1141 589 453 765 . . Legs 658 | 52 54 75 . . . . . 477 Wheels . | . . . . . . . . . Hover 238 | . . . . . . . . 238 Flight . | . . . . . . . . . Fastest Speed 50 | 50 120 120 166 161 161 160 50 50 Average Speed 149 | 113 145 160 169 165 163 211 61 91 Slowest Speed 1200 | 120 160 250 170 250 166 1200 400 120 Overloaded Moves . | . . . . . . . . . Propulsion Burnouts . | . . . . . . . . . Robots Hopped . | . . . . . . . . . Cave-ins Triggered . | . . . . . . . . . Exploration Rate (%) 41 | 4 27 31 95 52 10 20 58 72 Regions Visited 8 Branch Regions 3 Pre-discovered Areas . | . . . . . . . . . Known Exits Taken 3 | . . 1 . . 1 . 1 . Unknown Exits Taken 5 | 1 1 . 1 1 . 1 . . Scrap Searched 3 | . . . . . . . 2 1 Spaces Dug 95 | . . . 2 . 9 3 . 81 Terrain Destroyed 479 | . . 28 74 16 47 33 70 211 Melee . | . . . . . . . . . Projectile 41 | . . . 6 7 . 26 2 . AOE 438 | . . 28 68 9 47 7 68 211 Terrain Rammed . | . . . . . . . . . Walls Destroyed . | . . . . . . . . . Machines Disabled . | . . . . . . . . . Actions | -11 -10 -9 -9 -8 -7 -6 -6 -6 --------- Run | Yrd Mat Mat Sto Mat Fac Fac Low Low Total 7372 | 78 190 879 1709 783 749 1379 573 1032 Wait 1819 | 8 23 372 396 99 233 446 112 130 Move 4820 | 59 150 366 1140 588 452 772 438 855 Hop . | . . . . . . . . . Pick Up 67 | 4 5 18 9 12 5 12 1 1 Fast Attach 61 | 6 1 8 6 8 6 15 1 10 Attach 34 | . . 8 . 3 5 13 4 1 Detach 17 | . . 3 2 1 2 5 2 2 Swap 73 | . 3 16 24 12 4 6 1 7 Drop 97 | . 1 26 19 18 9 19 3 2 Fire 369 | 1 7 60 108 40 32 89 11 21 Melee 2 | . . . . . . . . 2 Ram 1 | . . . . . . 1 . . Kick . | . . . . . . . . . Crush 9 | . . 2 3 2 1 1 . . Escape Stasis . | . . . . . . . . . Rewire 3 | . . . 2 . . . . 1 Trap . | . . . . . . . . . Miscellaneous . | . . . . . . . . . Route ------- -11/Scrapyard -10/Materials -9/Materials (discovered 5 exits: *Mat / Min x2 / *Sto x2) -9/Storage (discovered 2 exits: *Mat / Rec) -8/Materials -7/Factory -6/Factory -6/Lower Caves -6/Lower Caves History --------- Turn | Location | Event 6 | -11/Scrapyard | Discovered new exit (range 16) 92 | -11/Scrapyard | Entered Materials 313 | -10/Materials | Discovered new exit (range 4) 318 | -10/Materials | Build established: Mutant 366 | -10/Materials | Entered another Materials area 366 | -9/Materials | Evolved 2 slots: Propulsion x1, Utility x1 509 | -9/Materials | Discovered new exit (range 7) 1057 | -9/Materials | Discovered new exit (range 3) 1281 | -9/Materials | Identified exit to Mines 1281 | -9/Materials | Identified exit to Storage 1387 | -9/Materials | Repaired Arm. Treads 1582 | -9/Materials | Entered Storage 2113 | -9/Storage | Assisted by bots powering up and referring to "LRC-V3" 2172 | -9/Storage | Garrison activated, responded to threat 2357 | -9/Storage | Lost 8 allies 2976 | -9/Storage | Discovered new exit (range 16) 2986 | -9/Storage | Found Prototype Processor 2986 | -9/Storage | Identified Exp. Targeting Computer 3187 | -9/Storage | Repaired Arm. Treads 3226 | -9/Storage | Repaired Arm. Treads 3285 | -9/Storage | Repaired Arm. Treads 3582 | -9/Storage | First assault squad dispatched 3713 | -9/Storage | Identified exit to Recycling 4289 | -9/Storage | Entered Materials 4289 | -8/Materials | Evolved 2 slots: Utility x1, Weapon x1 4617 | -8/Materials | Build established: Gunner 4641 | -8/Materials | Repaired Cld. Ion Engine 5031 | -8/Materials | Repaired Arm. Treads 5522 | -8/Materials | Discovered new exit (range 15) 5547 | -8/Materials | Entered Factory 5547 | -7/Factory | Evolved 2 slots: Utility x2 5852 | -7/Factory | Build established: Skirmisher 6082 | -7/Factory | Discovered new exit (range 4) 6093 | -7/Factory | Identified exit to Factory 6654 | -7/Factory | Entered another Factory area 6654 | -6/Factory | Evolved 2 slots: Power x1, Weapon x1 6676 | -6/Factory | Build established: Gunner 8022 | -6/Factory | Cargo convoy interrupted 8095 | -6/Factory | Lost 11 parts (2p3n3u3w) 8111 | -6/Factory | System corruption reached 10% 8168 | -6/Factory | Found PL-3XN's Ring of Power 9007 | -6/Factory | Discovered new exit (range 8) 9017 | -6/Factory | Core integrity fell below 50% 9026 | -6/Factory | Garrison activated, responded to threat 9043 | -6/Factory | Lost 5 parts (1p1n1u2w) 9076 | -6/Factory | Entered Lower Caves 9136 | -6/Lower Caves | Lost 3 parts (1p2w) 9310 | -6/Lower Caves | Learned location of 2 exits from Factory 9363 | -6/Lower Caves | Build established: Mutant 9463 | -6/Lower Caves | Discovered new exit (range 8) 9469 | -6/Lower Caves | Acquired the password to a Derelict Tinkerer's latest research 9480 | -6/Lower Caves | Identified exit to Lower Caves 9485 | -6/Lower Caves | Found Prototype Special Weapon 9485 | -6/Lower Caves | Identified Molecular Deconstructor 9493 | -6/Lower Caves | Entered another Lower Caves area 9497 | -6/Lower Caves | Encountered a Warlord checkpoint 9510 | -6/Lower Caves | Learned Factory emergency access door positions 9740 | -6/Lower Caves | Learned Factory terminal intel 9976 | -6/Lower Caves | Build established: Derelict-Mutant 10089 | -6/Lower Caves | Core integrity fell below 20% 10465 | -6/Lower Caves | Spotted B-75 Beast 10480 | -6/Lower Caves | Released all parts (7) 10485 | -6/Lower Caves | Destroyed by B-75 Beast with Magnetic Acceleration Cannon Last Messages --------------- 10452_ The unstable cave ceiling collapses. 10469_ Gravmag System destroyed. 10472_ Adv. Sensor Array destroyed. 10474_ System corrupted: Heat flow error (+133). 10478_ Mak. Power Source destroyed. 10479_ Gravity Neutralizer destroyed. 10479_ Carbon-fiber Leg destroyed. 10479_ Mak. Spear blasted off. 10479_ Dropped Imp. Cooling System. 10480_ Released Thermal Shield. 10480_ Released Mak. Spear. 10480_ Released Imp. Energy Well. 10480_ Released Adv. Signal Interpreter. 10480_ Released Exp. Targeting Computer. 10480_ Released Mak. Spear. 10480_ Released Lgt. Nuclear Core. 10482_ Knocked back. 10482_ Acquired 5 matter. 10484_ Acquired 3 matter. 10485_ Acquired 13 matter. Map ----- +----------------------------------------------------+ | ?????????????????????????????????????????????????# | | ?????????????????????????????????????????????????# | | ?????????????????????????????????????????????????? | | ?????????????????????????????????????????????????? | | ?????????????????????????????????????????????????? | | ?????????????????????????????????????????????????? | | ????????????????????????????????????????##???####? | | ??????????????????????????????????????### #### ## | | ?????????????????????????????????????#### # # | | ???????????????????????????????????### # # | | ??????????????????????????????????## # # | | ?????????????????????????????????## # # # | | ?????????????????????????????????# # # # ## | | ?????????????????????????????????# ### | | ??????????????????????????????????# # # | | ??????????????????????????????????# # # ### | | ?????????????#?????##?????????????###" % ##### | | ????????????? ????# #??????????????# ## # | | ?????????????? #### ##????????????# % #### | | ???????????????# ###?????????# #??# | | ????????????????? ##?????#### ######## | | ??????????????????# % % #?????# ## #?## | | ??????????????????# % %% #?????# ### #?# | | ?????????????????## % % %#?????# #?????# | | ?????????????????# %% %;###???##!% ##?????# | | ???????????????????????#%@; ####?#!/! #?????# | | ???????????????????????# ###//* ##????# | | ??????????????????????#; #"" #????# | | ??????????????????????# #????# | | ??????????????????????# #????# | | ??????????????????? #????## | | ??????????????????# # g #?????## | | ?????????????????# # ## BB #?????## | | ?????????????????##### ?## B ## ##### | | ?????????????????????# ??######### ## $ | | ????????????????????? ???????????# ## | | ???????????????????? ???????????#### ##### | | ???????????????????? # ??????????????? ###????? | | ???????????????????? ##???????????????# #??####? | | ??????????????????????????????????????? #### ## | | ??????????????????????????????????????? ### # | | ?????????????????????????????????????# ## | | ?????????????????????????????????????# | | ?????????????????????????????????????# | | ??????????????????????????????????? ### # | | ?????????????????????????????????# ????# ## | | ?????????????????????????????????# #### | | ????????????????????????????????# !! !!### | | ?????????????????????????????????#% ######?## | | ?????????????????????????????????## ???????????# | +----------------------------------------------------+ Best States ------------- Heat Dissipation 91 Energy Generation 35 Energy Capacity 895 Matter Stores 300 Matter Capacity 300 Sight Range 16 Robot Scan Range 16 Terrain Scan Density 10 Jamming Range 12 Additional Mass Support 12 Armor Coverage 450 Resistance: TH 20 Weapon Cycling 15 Evasion (%) 55 Targeting Accuracy 12 Target Analysis 5 Recoil Reduction 3 Energy Filtering 30 Offensive Hacking 10 Item Schematics ----------------- Grenade Launcher | -9/Materials | Scanalyzed Ion Engine | -9/Materials | Scanalyzed Med. Laser | -9/Materials | Scanalyzed Aluminum Leg | -9/Materials | Scanalyzed Robot Schematics ------------------ None Fabricated ------------ Nothing Alien Tech Used ----------------- None Achievements -------------- Let's See Who's Tougher Maybe Next Time I'll Detach My Launcher No Signal Challenges ------------ None Game ------ Seed AuthchipMediumCanceller Manual? 0 Play Time 01:51:42 Cumulative 31.7 hours Start 2024.09.09 @ 13:55:17 End 2024.09.09 @ 15:53:32 Sessions 1 Manual Loads 0 Difficulty Rogue Special Mode None Game No. 19 Rogue 19 Adventurer 0 Explorer 0 Win Type - Total 0 Types 0/0/0/0/0/0/0/0/0 Lore% 29 Gallery% 31 Achievement% 28 Wizard Run 0 Options --------- Layout 2 ASCII 0 Keyboard 0 Movement Mouse Keybinds 0 Fullscreen 1 Font 24/Smallcaps Map View 50x44 Zoom Use 0% Tactical HUD 1 Map Filters NONE Filters NONE Steam 1 RUN: 6ded6bd2-9f2a-4f45-b5d9-ed393bde5e00